[Event "Titled Tuesday Blitz May 30 Late 2023"]
[White "Krzywda, Andrzej"]
[Black "Arabidze, Meri"]
[WhiteFideId "1114565"]
[BlackFideId "13604040"]
[WhiteElo "2155"]
[BlackElo "2405"]
[Result "0-1"]
[Round "01"]
[TimeControl "180+2"]
[Date "2023.05.31"]
[WhiteClock "0:00:00"]
[BlackClock "0:01:04"]

1. e4 {[%clk 0:02:47]}  c5 {[%clk 0:02:57]} 2. Nf3 {[%clk 0:02:45]}  e6 {[%clk 0:02:56]} 3. d4 {[%clk 0:02:45]}  cxd4 {[%clk 0:02:57]} 4. Nxd4 {[%clk 0:02:46]}  Nc6 {[%clk 0:02:57]} 5. Bf4 {[%clk 0:02:47]}  d6 {[%clk 0:02:53]} 6. Nxc6 {[%clk 0:02:46]}  bxc6 {[%clk 0:02:52]} 7. c4 {[%clk 0:02:43]}  e5 {[%clk 0:02:45]} 8. Be3 {[%clk 0:02:43]}  Nf6 {[%clk 0:02:45]} 9. Nc3 {[%clk 0:02:43]}  Be7 {[%clk 0:02:45]} 10. Be2 {[%clk 0:02:43]}  O-O {[%clk 0:02:45]} 11. O-O {[%clk 0:02:43]}  Be6 {[%clk 0:02:42]} 12. b3 {[%clk 0:02:42]}  d5 {[%clk 0:02:37]} 13. cxd5 {[%clk 0:02:28]}  cxd5 {[%clk 0:02:38]} 14. exd5 {[%clk 0:02:27]}  Nxd5 {[%clk 0:02:38]} 15. Nxd5 {[%clk 0:02:25]}  Bxd5 {[%clk 0:02:31]} 16. Qd2 {[%clk 0:02:15]}  a5 {[%clk 0:02:01]} 17. Rfd1 {[%clk 0:02:11]}  Be6 {[%clk 0:02:01]} 18. Qc3 {[%clk 0:02:01]}  Qb8 {[%clk 0:01:56]} 19. Bf3 {[%clk 0:01:33]}  Ra6 {[%clk 0:01:54]} 20. Bd5 {[%clk 0:01:24]}  Rc8 {[%clk 0:01:40]} 21. Qd3 {[%clk 0:01:20]}  Rd6 {[%clk 0:01:40]} 22. Qe4 {[%clk 0:01:11]}  Rcd8 {[%clk 0:01:33]} 23. Rdc1 {[%clk 0:00:28]}  Bxd5 {[%clk 0:01:31]} 24. Qg4 {[%clk 0:00:25]}  Be6 {[%clk 0:01:29]} 25. Qf3 {[%clk 0:00:22]}  h6 {[%clk 0:01:22]} 26. h3 {[%clk 0:00:21]}  Bf6 {[%clk 0:01:18]} 27. Rab1 {[%clk 0:00:19]}  Bd5 {[%clk 0:01:16]} 28. Qf5 {[%clk 0:00:18]}  Be6 {[%clk 0:01:14]} 29. Qf3 {[%clk 0:00:18]}  Qa8 {[%clk 0:01:12]} 30. Qg3 {[%clk 0:00:15]}  Kh8 {[%clk 0:01:11]} 31. h4 {[%clk 0:00:12]}  Qe4 {[%clk 0:01:09]} 32. Re1 {[%clk 0:00:10]}  Qxh4 {[%clk 0:01:08]} 33. Qf3 {[%clk 0:00:08]}  Qg4 {[%clk 0:01:06]} 34. Qb7 {[%clk 0:00:00]}  Bd5 {[%clk 0:01:04]} 0-1


[Site "https://www.chess.com"]

[Event "Titled Tuesday Blitz May 30 Late 2023"]
[White "Vlassov, Nikolai"]
[Black "Kovacs, Klara"]
[WhiteFideId "4103360"]
[BlackFideId "733210"]
[WhiteElo "2324"]
[BlackElo "2179"]
[Result "1-0"]
[Round "01"]
[TimeControl "180+2"]
[Date "2023.05.31"]
[WhiteClock "0:00:15"]
[BlackClock "0:01:03"]

1. e4 {[%clk 0:02:56]}  e6 {[%clk 0:02:59]} 2. c4 {[%clk 0:02:55]}  d5 {[%clk 0:03:00]} 3. cxd5 {[%clk 0:02:54]}  exd5 {[%clk 0:03:01]} 4. Qb3 {[%clk 0:02:54]}  Nf6 {[%clk 0:02:55]} 5. e5 {[%clk 0:02:54]}  Ne4 {[%clk 0:02:51]} 6. d4 {[%clk 0:02:54]}  Be7 {[%clk 0:02:48]} 7. Bd3 {[%clk 0:02:46]}  O-O {[%clk 0:02:47]} 8. Qc2 {[%clk 0:02:37]}  f5 {[%clk 0:02:46]} 9. Ne2 {[%clk 0:02:26]}  Nc6 {[%clk 0:02:42]} 10. a3 {[%clk 0:02:20]}  Be6 {[%clk 0:02:41]} 11. f3 {[%clk 0:02:06]}  Ng5 {[%clk 0:02:37]} 12. Be3 {[%clk 0:02:06]}  f4 {[%clk 0:02:30]} 13. Bf2 {[%clk 0:01:56]}  h6 {[%clk 0:02:30]} 14. h4 {[%clk 0:01:50]}  Nf7 {[%clk 0:02:29]} 15. Nxf4 {[%clk 0:01:51]}  Bc8 {[%clk 0:02:10]} 16. Bh7+ {[%clk 0:01:42]}  Kh8 {[%clk 0:02:02]} 17. Ng6+ {[%clk 0:01:41]}  Kxh7 {[%clk 0:02:02]} 18. Nxe7+ {[%clk 0:01:40]}  Kh8 {[%clk 0:01:59]} 19. Ng6+ {[%clk 0:01:36]}  Kg8 {[%clk 0:01:59]} 20. Nxf8 {[%clk 0:01:36]}  Qxf8 {[%clk 0:02:00]} 21. Nc3 {[%clk 0:01:34]}  Be6 {[%clk 0:01:55]} 22. Ne2 {[%clk 0:01:31]}  Re8 {[%clk 0:01:53]} 23. Nf4 {[%clk 0:01:30]}  Nfxe5 {[%clk 0:01:46]} 24. Nxe6 {[%clk 0:01:22]}  Nxf3+ {[%clk 0:01:46]} 25. gxf3 {[%clk 0:01:21]}  Rxe6+ {[%clk 0:01:47]} 26. Kf1 {[%clk 0:01:16]}  Qxf3 {[%clk 0:01:46]} 27. Rh2 {[%clk 0:01:10]}  Nxd4 {[%clk 0:01:37]} 28. Qd1 {[%clk 0:00:59]}  Ne2 {[%clk 0:01:31]} 29. Rg2 {[%clk 0:00:47]}  Ng3+ {[%clk 0:01:20]} 30. Rxg3 {[%clk 0:00:36]}  Qh1+ {[%clk 0:01:20]} 31. Bg1 {[%clk 0:00:20]}  Rf6+ {[%clk 0:01:20]} 32. Ke2 {[%clk 0:00:20]}  Qe4+ {[%clk 0:01:19]} 33. Be3 {[%clk 0:00:19]}  d4 {[%clk 0:01:15]} 34. Qxd4 {[%clk 0:00:18]}  Qc2+ {[%clk 0:01:15]} 35. Qd2 {[%clk 0:00:18]}  Qc4+ {[%clk 0:01:13]} 36. Qd3 {[%clk 0:00:19]}  Qxh4 {[%clk 0:01:11]} 37. Rag1 {[%clk 0:00:18]}  Qh5+ {[%clk 0:01:09]} 38. Ke1 {[%clk 0:00:17]}  Qh4 {[%clk 0:01:08]} 39. Bf2 {[%clk 0:00:16]}  Re6+ {[%clk 0:01:07]} 40. Re3 {[%clk 0:00:16]}  Qe7 {[%clk 0:01:03]} 41. Rxe6 {[%clk 0:00:15]}  Qxe6+ {[%clk 0:01:03]} 42. Qe3 {[%clk 0:00:15]} 1-0


[Site "https://www.chess.com"]

[Event "Titled Tuesday Blitz May 30 Late 2023"]
[White "Qiao, Cindy"]
[Black "Rostomyan, Mikayel"]
[WhiteFideId "2620243"]
[BlackFideId "13313754"]
[WhiteElo "1777"]
[BlackElo "2061"]
[Result "1-0"]
[Round "01"]
[TimeControl "180+2"]
[Date "2023.05.31"]
[WhiteClock "0:01:02"]
[BlackClock "0:00:11"]

1. d4 {[%clk 0:02:59]}  Nf6 {[%clk 0:02:59]} 2. Bf4 {[%clk 0:02:59]}  e6 {[%clk 0:02:57]} 3. e3 {[%clk 0:02:59]}  c5 {[%clk 0:02:56]} 4. Nf3 {[%clk 0:02:57]}  d5 {[%clk 0:02:54]} 5. Nbd2 {[%clk 0:02:57]}  Bd6 {[%clk 0:02:44]} 6. Bg3 {[%clk 0:02:55]}  O-O {[%clk 0:02:41]} 7. Bd3 {[%clk 0:02:55]}  Nc6 {[%clk 0:02:32]} 8. c3 {[%clk 0:02:55]}  b6 {[%clk 0:02:29]} 9. O-O {[%clk 0:02:43]}  Qc7 {[%clk 0:02:20]} 10. e4 {[%clk 0:02:32]}  cxd4 {[%clk 0:02:03]} 11. cxd4 {[%clk 0:02:25]}  dxe4 {[%clk 0:02:01]} 12. Nxe4 {[%clk 0:02:25]}  Nxe4 {[%clk 0:01:54]} 13. Bxe4 {[%clk 0:02:25]}  Bxg3 {[%clk 0:01:54]} 14. hxg3 {[%clk 0:02:25]}  Bb7 {[%clk 0:01:52]} 15. Rc1 {[%clk 0:01:50]}  Qd6 {[%clk 0:01:47]} 16. Qc2 {[%clk 0:01:45]}  Rac8 {[%clk 0:01:26]} 17. Bxh7+ {[%clk 0:01:42]}  Kh8 {[%clk 0:01:24]} 18. Qe4 {[%clk 0:01:41]}  g6 {[%clk 0:01:09]} 19. Bxg6 {[%clk 0:01:41]}  fxg6 {[%clk 0:01:08]} 20. Qxg6 {[%clk 0:01:41]}  Qe7 {[%clk 0:01:04]} 21. Rfe1 {[%clk 0:01:32]}  Qh7 {[%clk 0:00:40]} 22. Qxe6 {[%clk 0:01:28]}  Rce8 {[%clk 0:00:35]} 23. Qxe8 {[%clk 0:01:27]}  Rxe8 {[%clk 0:00:34]} 24. Rxe8+ {[%clk 0:01:28]}  Kg7 {[%clk 0:00:34]} 25. Rxc6 {[%clk 0:01:27]}  Qh5 {[%clk 0:00:26]} 26. Rc7+ {[%clk 0:01:26]}  Kf6 {[%clk 0:00:23]} 27. Rf8+ {[%clk 0:01:25]}  Ke6 {[%clk 0:00:24]} 28. Rxb7 {[%clk 0:01:22]}  Qh6 {[%clk 0:00:21]} 29. Re8+ {[%clk 0:01:20]}  Kd6 {[%clk 0:00:20]} 30. Rbe7 {[%clk 0:01:16]}  Qc1+ {[%clk 0:00:19]} 31. Kh2 {[%clk 0:01:14]}  Qxb2 {[%clk 0:00:20]} 32. Rxa7 {[%clk 0:01:11]}  Qxf2 {[%clk 0:00:18]} 33. Rd8+ {[%clk 0:01:09]}  Kc6 {[%clk 0:00:18]} 34. d5+ {[%clk 0:01:10]}  Kb5 {[%clk 0:00:18]} 35. d6 {[%clk 0:01:08]}  Qc2 {[%clk 0:00:15]} 36. d7 {[%clk 0:01:02]}  Qh7+ {[%clk 0:00:15]} 37. Nh4 {[%clk 0:01:03]}  Qe7 {[%clk 0:00:11]} 38. Re8 {[%clk 0:01:02]} 1-0


[Site "https://www.chess.com"]

[Event "Titled Tuesday Blitz May 30 Late 2023"]
[White "Saveliev, Alexei"]
[Black "Arun, Siddharth"]
[WhiteFideId "24128546"]
[BlackFideId "2079178"]
[WhiteElo "2271"]
[BlackElo "2346"]
[Result "1-0"]
[Round "01"]
[TimeControl "180+2"]
[Date "2023.05.31"]
[WhiteClock "0:00:20"]
[BlackClock "0:00:14"]

1. c4 {[%clk 0:02:46]}  c6 {[%clk 0:02:48]} 2. Nc3 {[%clk 0:02:46]}  d5 {[%clk 0:02:47]} 3. cxd5 {[%clk 0:02:46]}  cxd5 {[%clk 0:02:48]} 4. d4 {[%clk 0:02:47]}  Nf6 {[%clk 0:02:47]} 5. Nf3 {[%clk 0:02:48]}  Nc6 {[%clk 0:02:47]} 6. Bg5 {[%clk 0:02:48]}  e6 {[%clk 0:02:41]} 7. e3 {[%clk 0:02:48]}  Be7 {[%clk 0:02:41]} 8. Bd3 {[%clk 0:02:48]}  h6 {[%clk 0:02:40]} 9. Bh4 {[%clk 0:02:44]}  a6 {[%clk 0:02:38]} 10. O-O {[%clk 0:02:43]}  Qc7 {[%clk 0:02:35]} 11. Rc1 {[%clk 0:02:42]}  Qb8 {[%clk 0:02:35]} 12. Na4 {[%clk 0:02:35]}  Nd7 {[%clk 0:02:22]} 13. Bxe7 {[%clk 0:02:21]}  Nxe7 {[%clk 0:02:22]} 14. e4 {[%clk 0:02:08]}  b6 {[%clk 0:02:15]} 15. e5 {[%clk 0:02:02]}  Bb7 {[%clk 0:02:14]} 16. Qb3 {[%clk 0:01:48]}  Bc6 {[%clk 0:02:12]} 17. Nc3 {[%clk 0:01:39]}  b5 {[%clk 0:02:10]} 18. Ne2 {[%clk 0:01:32]}  a5 {[%clk 0:02:03]} 19. Bb1 {[%clk 0:01:29]}  b4 {[%clk 0:02:02]} 20. Ng3 {[%clk 0:01:25]}  a4 {[%clk 0:02:01]} 21. Qe3 {[%clk 0:01:24]}  Bb5 {[%clk 0:01:54]} 22. Rfe1 {[%clk 0:01:19]}  g6 {[%clk 0:01:50]} 23. Qf4 {[%clk 0:01:15]}  Nf5 {[%clk 0:01:35]} 24. Bxf5 {[%clk 0:01:12]}  gxf5 {[%clk 0:01:34]} 25. Nh5 {[%clk 0:01:10]}  Bc4 {[%clk 0:01:20]} 26. a3 {[%clk 0:01:03]}  Qb7 {[%clk 0:01:04]} 27. Qh4 {[%clk 0:00:56]}  Qb6 {[%clk 0:00:54]} 28. Nd2 {[%clk 0:00:52]}  Rc8 {[%clk 0:00:40]} 29. Nxc4 {[%clk 0:00:35]}  dxc4 {[%clk 0:00:40]} 30. d5 {[%clk 0:00:34]}  Rg8 {[%clk 0:00:31]} 31. Rxc4 {[%clk 0:00:20]}  Rxc4 {[%clk 0:00:24]} 32. Qxc4 {[%clk 0:00:21]}  Qc5 {[%clk 0:00:18]} 33. Qxc5 {[%clk 0:00:20]}  Nxc5 {[%clk 0:00:14]} 34. Nf6+ {[%clk 0:00:20]} 1-0


[Site "https://www.chess.com"]

[Event "Titled Tuesday Blitz May 30 Late 2023"]
[White "Do Valle Cardoso, Lucas"]
[Black "Rose, Felix"]
[WhiteFideId "2163144"]
[BlackFideId "5105722"]
[WhiteElo "2372"]
[BlackElo "2039"]
[Result "1-0"]
[Round "01"]
[TimeControl "180+2"]
[Date "2023.05.31"]
[WhiteClock "0:00:15"]
[BlackClock "0:00:12"]

1. e4 {[%clk 0:02:53]}  c5 {[%clk 0:02:57]} 2. Nf3 {[%clk 0:02:34]}  g6 {[%clk 0:02:56]} 3. Nc3 {[%clk 0:02:35]}  Bg7 {[%clk 0:02:56]} 4. d4 {[%clk 0:02:30]}  cxd4 {[%clk 0:02:57]} 5. Nxd4 {[%clk 0:02:31]}  Nc6 {[%clk 0:02:53]} 6. Be3 {[%clk 0:02:31]}  Nf6 {[%clk 0:02:53]} 7. Nxc6 {[%clk 0:02:32]}  bxc6 {[%clk 0:02:53]} 8. e5 {[%clk 0:02:32]}  Ng8 {[%clk 0:02:53]} 9. Bd4 {[%clk 0:02:32]}  Qa5 {[%clk 0:02:47]} 10. f4 {[%clk 0:02:28]}  Rb8 {[%clk 0:02:45]} 11. Bc4 {[%clk 0:01:53]}  c5 {[%clk 0:02:20]} 12. Be3 {[%clk 0:01:47]}  Rxb2 {[%clk 0:02:15]} 13. Bd2 {[%clk 0:01:38]}  Rb8 {[%clk 0:02:08]} 14. Nd5 {[%clk 0:01:32]}  Qd8 {[%clk 0:02:01]} 15. O-O {[%clk 0:01:28]}  Bb7 {[%clk 0:01:43]} 16. Qe1 {[%clk 0:01:14]}  e6 {[%clk 0:01:38]} 17. Ba5 {[%clk 0:01:13]}  Bxd5 {[%clk 0:01:17]} 18. Bxd8 {[%clk 0:00:51]}  Bxc4 {[%clk 0:01:17]} 19. Bc7 {[%clk 0:00:51]}  Rc8 {[%clk 0:01:16]} 20. Qa5 {[%clk 0:00:43]}  Bxf1 {[%clk 0:01:12]} 21. Kxf1 {[%clk 0:00:44]}  Ne7 {[%clk 0:01:11]} 22. Rd1 {[%clk 0:00:33]}  O-O {[%clk 0:00:52]} 23. Rxd7 {[%clk 0:00:30]}  Nd5 {[%clk 0:00:51]} 24. Bd6 {[%clk 0:00:24]}  Rfe8 {[%clk 0:00:46]} 25. g3 {[%clk 0:00:20]}  Ne3+ {[%clk 0:00:38]} 26. Kf2 {[%clk 0:00:20]}  Nf5 {[%clk 0:00:38]} 27. Qa6 {[%clk 0:00:17]}  Nxd6 {[%clk 0:00:35]} 28. exd6 {[%clk 0:00:16]}  Bd4+ {[%clk 0:00:36]} 29. Kf3 {[%clk 0:00:17]}  c4 {[%clk 0:00:29]} 30. Rc7 {[%clk 0:00:15]}  Rcd8 {[%clk 0:00:24]} 31. d7 {[%clk 0:00:15]}  Rf8 {[%clk 0:00:21]} 32. Qxc4 {[%clk 0:00:15]}  Bb6 {[%clk 0:00:20]} 33. Rb7 {[%clk 0:00:15]}  Rb8 {[%clk 0:00:16]} 34. Rxb8 {[%clk 0:00:15]}  Rxb8 {[%clk 0:00:12]} 35. Qc8+ {[%clk 0:00:15]} 1-0


[Site "https://www.chess.com"]

[Event "Titled Tuesday Blitz May 30 Late 2023"]
[White "Hoffmann, Asa"]
[Black "Isajevsky, Anton"]
[WhiteFideId "2001470"]
[BlackFideId "4142500"]
[WhiteElo "2117"]
[BlackElo "2510"]
[Result "0-1"]
[Round "01"]
[TimeControl "180+2"]
[Date "2023.05.31"]
[WhiteClock "0:00:00"]
[BlackClock "0:01:12"]

1. d4 {[%clk 0:02:54]}  d5 {[%clk 0:02:58]} 2. Bg5 {[%clk 0:02:50]}  h6 {[%clk 0:02:55]} 3. Bh4 {[%clk 0:02:49]}  c6 {[%clk 0:02:55]} 4. e3 {[%clk 0:02:45]}  Qb6 {[%clk 0:02:52]} 5. b3 {[%clk 0:02:44]}  Bf5 {[%clk 0:02:51]} 6. Bd3 {[%clk 0:02:43]}  Bxd3 {[%clk 0:02:49]} 7. Qxd3 {[%clk 0:02:43]}  e6 {[%clk 0:02:48]} 8. Nd2 {[%clk 0:02:42]}  Be7 {[%clk 0:02:36]} 9. Bg3 {[%clk 0:02:23]}  Nf6 {[%clk 0:02:30]} 10. Ngf3 {[%clk 0:02:22]}  O-O {[%clk 0:02:22]} 11. h3 {[%clk 0:02:21]}  a5 {[%clk 0:02:21]} 12. a3 {[%clk 0:02:20]}  c5 {[%clk 0:02:02]} 13. c4 {[%clk 0:00:10]}  Qa6 {[%clk 0:01:27]} 14. Rc1 {[%clk 0:00:09]}  Nc6 {[%clk 0:01:23]} 15. O-O {[%clk 0:00:08]}  cxd4 {[%clk 0:01:21]} 16. exd4 {[%clk 0:00:08]}  Bxa3 {[%clk 0:01:20]} 17. Ra1 {[%clk 0:00:06]}  Bb4 {[%clk 0:01:18]} 18. Rfe1 {[%clk 0:00:00]}  Rfd8 {[%clk 0:01:12]} 0-1


[Site "https://www.chess.com"]

[Event "Titled Tuesday Blitz May 30 Late 2023"]
[White "Filipascu"]
[Black "Kaganskiy, Gleb"]
[BlackFideId "4132025"]
[WhiteElo "2622"]
[BlackElo "2165"]
[Result "1-0"]
[Round "01"]
[TimeControl "180+2"]
[Date "2023.05.31"]
[WhiteClock "0:00:09"]
[BlackClock "0:00:00"]

1. c4 {[%clk 0:02:56]}  e5 {[%clk 0:02:54]} 2. e3 {[%clk 0:02:55]}  d6 {[%clk 0:02:48]} 3. Nc3 {[%clk 0:02:55]}  g6 {[%clk 0:02:46]} 4. Nf3 {[%clk 0:02:53]}  Bg7 {[%clk 0:02:45]} 5. d4 {[%clk 0:02:52]}  Nd7 {[%clk 0:02:44]} 6. Be2 {[%clk 0:02:46]}  Ngf6 {[%clk 0:02:43]} 7. O-O {[%clk 0:02:32]}  O-O {[%clk 0:02:41]} 8. b3 {[%clk 0:02:30]}  c6 {[%clk 0:02:36]} 9. Bb2 {[%clk 0:02:24]}  Re8 {[%clk 0:02:29]} 10. Qc2 {[%clk 0:02:17]}  Nf8 {[%clk 0:02:25]} 11. dxe5 {[%clk 0:02:06]}  dxe5 {[%clk 0:02:24]} 12. Rad1 {[%clk 0:02:06]}  Qe7 {[%clk 0:02:21]} 13. Qc1 {[%clk 0:01:58]}  Bg4 {[%clk 0:01:50]} 14. Ba3 {[%clk 0:01:28]}  c5 {[%clk 0:01:43]} 15. h3 {[%clk 0:01:16]}  Bxf3 {[%clk 0:01:37]} 16. Bxf3 {[%clk 0:01:17]}  e4 {[%clk 0:01:37]} 17. Be2 {[%clk 0:01:18]}  b6 {[%clk 0:01:36]} 18. Nd5 {[%clk 0:01:11]}  Nxd5 {[%clk 0:01:35]} 19. cxd5 {[%clk 0:01:12]}  Qd6 {[%clk 0:01:32]} 20. Qc4 {[%clk 0:01:08]}  Nd7 {[%clk 0:01:30]} 21. b4 {[%clk 0:01:02]}  Rac8 {[%clk 0:01:09]} 22. bxc5 {[%clk 0:01:00]}  Nxc5 {[%clk 0:01:09]} 23. Rc1 {[%clk 0:00:58]}  f5 {[%clk 0:01:05]} 24. Rfd1 {[%clk 0:00:44]}  Red8 {[%clk 0:01:03]} 25. Qb5 {[%clk 0:00:39]}  Rc7 {[%clk 0:00:44]} 26. Bxc5 {[%clk 0:00:33]}  Rxc5 {[%clk 0:00:41]} 27. Rxc5 {[%clk 0:00:32]}  Qxc5 {[%clk 0:00:39]} 28. Qa4 {[%clk 0:00:25]}  a5 {[%clk 0:00:33]} 29. Qb3 {[%clk 0:00:20]}  Rd6 {[%clk 0:00:30]} 30. a4 {[%clk 0:00:20]}  Qb4 {[%clk 0:00:29]} 31. Qc2 {[%clk 0:00:20]}  Qc5 {[%clk 0:00:27]} 32. Bc4 {[%clk 0:00:19]}  h5 {[%clk 0:00:25]} 33. Rb1 {[%clk 0:00:19]}  Kh7 {[%clk 0:00:24]} 34. Rb5 {[%clk 0:00:19]}  Qc7 {[%clk 0:00:23]} 35. Qb3 {[%clk 0:00:19]}  Be5 {[%clk 0:00:20]} 36. h4 {[%clk 0:00:16]}  Qd8 {[%clk 0:00:15]} 37. g3 {[%clk 0:00:06]}  Qc7 {[%clk 0:00:12]} 38. Kg2 {[%clk 0:00:06]}  Qd8 {[%clk 0:00:11]} 39. Be2 {[%clk 0:00:06]}  Qc7 {[%clk 0:00:11]} 40. Qd1 {[%clk 0:00:05]}  Qd8 {[%clk 0:00:09]} 41. Bc4 {[%clk 0:00:04]}  Qc7 {[%clk 0:00:09]} 42. Qe2 {[%clk 0:00:05]}  Qd8 {[%clk 0:00:08]} 43. Ba2 {[%clk 0:00:06]}  Qc7 {[%clk 0:00:08]} 44. Rb1 {[%clk 0:00:07]}  Qc3 {[%clk 0:00:06]} 45. Qb5 {[%clk 0:00:07]}  Qc5 {[%clk 0:00:05]} 46. Qe8 {[%clk 0:00:07]}  Qc7 {[%clk 0:00:03]} 47. Qxe5 {[%clk 0:00:07]}  Rd7 {[%clk 0:00:02]} 48. Qxc7 {[%clk 0:00:07]}  Rxc7 {[%clk 0:00:02]} 49. d6 {[%clk 0:00:07]}  Rd7 {[%clk 0:00:03]} 50. Rxb6 {[%clk 0:00:08]}  Kg7 {[%clk 0:00:02]} 51. Be6 {[%clk 0:00:09]}  Kf6 {[%clk 0:00:00]} 52. Bxd7 {[%clk 0:00:09]} 1-0


[Site "https://www.chess.com"]

[Event "Titled Tuesday Blitz May 30 Late 2023"]
[White "Campos, Maria Jose"]
[Black "Korchmar, Vasiliy"]
[WhiteFideId "146803"]
[BlackFideId "24131750"]
[WhiteElo "2170"]
[BlackElo "2370"]
[Result "0-1"]
[Round "01"]
[TimeControl "180+2"]
[Date "2023.05.31"]
[WhiteClock "0:00:38"]
[BlackClock "0:00:05"]

1. c4 {[%clk 0:02:58]}  c6 {[%clk 0:02:59]} 2. Nf3 {[%clk 0:02:57]}  d5 {[%clk 0:02:54]} 3. g3 {[%clk 0:02:57]}  g6 {[%clk 0:02:53]} 4. Bg2 {[%clk 0:02:55]}  Bg7 {[%clk 0:02:53]} 5. O-O {[%clk 0:02:55]}  e5 {[%clk 0:02:54]} 6. cxd5 {[%clk 0:02:51]}  cxd5 {[%clk 0:02:55]} 7. d3 {[%clk 0:02:52]}  Ne7 {[%clk 0:02:55]} 8. Nc3 {[%clk 0:02:51]}  Nbc6 {[%clk 0:02:55]} 9. a3 {[%clk 0:02:50]}  O-O {[%clk 0:02:54]} 10. Rb1 {[%clk 0:02:49]}  h6 {[%clk 0:02:51]} 11. Bd2 {[%clk 0:02:48]}  Be6 {[%clk 0:02:48]} 12. b4 {[%clk 0:02:48]}  f5 {[%clk 0:02:36]} 13. b5 {[%clk 0:02:47]}  Nb8 {[%clk 0:02:37]} 14. e3 {[%clk 0:02:46]}  Nd7 {[%clk 0:02:34]} 15. a4 {[%clk 0:02:45]}  Kh7 {[%clk 0:02:33]} 16. Qe2 {[%clk 0:02:44]}  Rc8 {[%clk 0:02:31]} 17. Rfc1 {[%clk 0:02:43]}  g5 {[%clk 0:02:23]} 18. a5 {[%clk 0:02:40]}  Ng6 {[%clk 0:02:23]} 19. Ne1 {[%clk 0:02:37]}  e4 {[%clk 0:02:15]} 20. d4 {[%clk 0:02:27]}  f4 {[%clk 0:02:14]} 21. Qd1 {[%clk 0:02:18]}  Qf6 {[%clk 0:02:05]} 22. Na4 {[%clk 0:02:05]}  fxg3 {[%clk 0:01:10]} 23. fxg3 {[%clk 0:02:03]}  Qf2+ {[%clk 0:01:10]} 24. Kh1 {[%clk 0:02:03]}  Nf6 {[%clk 0:01:06]} 25. Nc2 {[%clk 0:01:47]}  Ng4 {[%clk 0:00:58]} 26. Be1 {[%clk 0:01:40]}  Rxc2 {[%clk 0:00:29]} 27. Bxf2 {[%clk 0:01:24]}  Nxf2+ {[%clk 0:00:29]} 28. Kg1 {[%clk 0:01:25]}  Nxd1 {[%clk 0:00:29]} 29. Rxc2 {[%clk 0:01:22]}  Nxe3 {[%clk 0:00:30]} 30. Rc7 {[%clk 0:01:21]}  Kg8 {[%clk 0:00:23]} 31. Rb4 {[%clk 0:01:18]}  Nf5 {[%clk 0:00:14]} 32. Rxg7+ {[%clk 0:01:15]}  Kxg7 {[%clk 0:00:14]} 33. Nc5 {[%clk 0:01:15]}  Bc8 {[%clk 0:00:13]} 34. b6 {[%clk 0:01:12]}  a6 {[%clk 0:00:12]} 35. Nxa6 {[%clk 0:01:10]}  bxa6 {[%clk 0:00:12]} 36. b7 {[%clk 0:01:11]}  Bxb7 {[%clk 0:00:12]} 37. Rxb7+ {[%clk 0:01:11]}  Rf7 {[%clk 0:00:12]} 38. Rb6 {[%clk 0:01:10]}  Nxd4 {[%clk 0:00:08]} 39. Rxa6 {[%clk 0:01:10]}  e3 {[%clk 0:00:08]} 40. Bf1 {[%clk 0:00:58]}  e2 {[%clk 0:00:07]} 41. Bxe2 {[%clk 0:00:58]}  Nxe2+ {[%clk 0:00:08]} 42. Kg2 {[%clk 0:00:55]}  Rd7 {[%clk 0:00:07]} 43. Re6 {[%clk 0:00:53]}  Nd4 {[%clk 0:00:07]} 44. Rb6 {[%clk 0:00:52]}  Ne7 {[%clk 0:00:05]} 45. a6 {[%clk 0:00:52]}  Ndc6 {[%clk 0:00:06]} 46. Kf2 {[%clk 0:00:51]}  d4 {[%clk 0:00:06]} 47. Ke2 {[%clk 0:00:50]}  d3+ {[%clk 0:00:06]} 48. Kd2 {[%clk 0:00:51]}  Kf7 {[%clk 0:00:07]} 49. h4 {[%clk 0:00:51]}  g4 {[%clk 0:00:07]} 50. h5 {[%clk 0:00:51]}  Kf6 {[%clk 0:00:07]} 51. Rb5 {[%clk 0:00:47]}  Ra7 {[%clk 0:00:06]} 52. Rb6 {[%clk 0:00:45]}  Kg5 {[%clk 0:00:06]} 53. Rb5+ {[%clk 0:00:45]}  Nf5 {[%clk 0:00:06]} 54. Rb6 {[%clk 0:00:43]}  Ne5 {[%clk 0:00:06]} 55. Rb7 {[%clk 0:00:41]}  Rxa6 {[%clk 0:00:06]} 56. Rb2 {[%clk 0:00:38]}  Nc4+ {[%clk 0:00:05]} 0-1


[Site "https://www.chess.com"]

[Event "Titled Tuesday Blitz May 30 Late 2023"]
[White "Bjelobrk, Igor"]
[Black "Prieto Aranguren, Alain"]
[WhiteFideId "4300726"]
[BlackFideId "2268906"]
[WhiteElo "2319"]
[BlackElo "2209"]
[Result "1-0"]
[Round "01"]
[TimeControl "180+2"]
[Date "2023.05.31"]
[WhiteClock "0:00:15"]
[BlackClock "0:00:00"]

1. d4 {[%clk 0:02:55]}  Nf6 {[%clk 0:02:58]} 2. c4 {[%clk 0:02:54]}  g6 {[%clk 0:02:58]} 3. Nc3 {[%clk 0:02:51]}  Bg7 {[%clk 0:02:59]} 4. e4 {[%clk 0:02:51]}  d6 {[%clk 0:02:58]} 5. Nf3 {[%clk 0:02:49]}  O-O {[%clk 0:02:58]} 6. Be2 {[%clk 0:02:49]}  e5 {[%clk 0:02:58]} 7. d5 {[%clk 0:02:49]}  a5 {[%clk 0:02:57]} 8. Bg5 {[%clk 0:02:47]}  h6 {[%clk 0:02:55]} 9. Be3 {[%clk 0:02:47]}  Na6 {[%clk 0:02:55]} 10. Nd2 {[%clk 0:02:46]}  Nd7 {[%clk 0:02:53]} 11. a3 {[%clk 0:02:45]}  f5 {[%clk 0:02:43]} 12. f3 {[%clk 0:02:41]}  Kh7 {[%clk 0:02:33]} 13. b4 {[%clk 0:02:40]}  Bf6 {[%clk 0:02:30]} 14. O-O {[%clk 0:02:35]}  Bg5 {[%clk 0:02:30]} 15. Bf2 {[%clk 0:02:31]}  Bh4 {[%clk 0:02:16]} 16. g3 {[%clk 0:02:29]}  Bg5 {[%clk 0:02:16]} 17. c5 {[%clk 0:02:12]}  f4 {[%clk 0:02:02]} 18. Nc4 {[%clk 0:02:04]}  fxg3 {[%clk 0:01:55]} 19. hxg3 {[%clk 0:02:04]}  Nf6 {[%clk 0:01:54]} 20. cxd6 {[%clk 0:01:56]}  cxd6 {[%clk 0:01:53]} 21. Nb5 {[%clk 0:01:57]}  Bh3 {[%clk 0:01:44]} 22. Nbxd6 {[%clk 0:01:57]}  Bxf1 {[%clk 0:01:41]} 23. Bxf1 {[%clk 0:01:57]}  axb4 {[%clk 0:01:37]} 24. Nxb7 {[%clk 0:01:43]}  Qd7 {[%clk 0:01:23]} 25. Nc5 {[%clk 0:01:32]}  Nxc5 {[%clk 0:01:23]} 26. Bxc5 {[%clk 0:01:32]}  Rfc8 {[%clk 0:01:13]} 27. axb4 {[%clk 0:01:32]}  Nh5 {[%clk 0:01:10]} 28. Rxa8 {[%clk 0:01:24]}  Rxa8 {[%clk 0:01:09]} 29. Nb6 {[%clk 0:01:24]}  Qd8 {[%clk 0:00:52]} 30. Nxa8 {[%clk 0:01:25]}  Nxg3 {[%clk 0:00:47]} 31. Nb6 {[%clk 0:01:24]}  Bf4 {[%clk 0:00:38]} 32. Bh3 {[%clk 0:01:17]}  Qg5 {[%clk 0:00:31]} 33. Bg2 {[%clk 0:01:07]}  Be3+ {[%clk 0:00:12]} 34. Bxe3 {[%clk 0:01:06]}  Qxe3+ {[%clk 0:00:12]} 35. Kh2 {[%clk 0:01:07]}  Qf4 {[%clk 0:00:06]} 36. Qe1 {[%clk 0:00:56]}  Nxe4+ {[%clk 0:00:03]} 37. Kh1 {[%clk 0:00:56]}  Ng5 {[%clk 0:00:02]} 38. d6 {[%clk 0:00:25]}  Nxf3 {[%clk 0:00:01]} 39. Bxf3 {[%clk 0:00:19]}  Qxf3+ {[%clk 0:00:02]} 40. Kh2 {[%clk 0:00:19]}  Qg4 {[%clk 0:00:02]} 41. d7 {[%clk 0:00:15]}  Qf4+ {[%clk 0:00:01]} 42. Qg3 {[%clk 0:00:14]}  Qd2+ {[%clk 0:00:00]} 43. Kh3 {[%clk 0:00:15]} 1-0


[Site "https://www.chess.com"]